bitfinex/quotes_ETHUSD_20251212
["timestamp","ask_amount","ask_price","bid_price","bid_amount"]
[1765505630419,0.4817,3252.7,3251.6,0.4853]
[1765505630641,0.45175377,3252.9,3251.6,0.4853]
[1765505630942,0.1909,3254.4,3252.6,0.1989]
[1765505630943,0.4817,3253.7,3252.6,0.1989]
[1765505631106,0.4817,3254.1,3252.8,0.4853]
[1765505631503,0.4817,3254.1,3252.9,6.14835992]
[1765505631691,0.4817,3254.1,3253.2,0.37078808]
[1765505631901,0.1909,3254.9,3253.7,0.6699]
[1765505632228,0.4817,3254.8,3253.8,0.494]
[1765505632443,0.6596,3253.9,3253.8,0.494]
[1765505632590,0.6596,3253.9,3252.9,3.07417996]
[1765505632792,0.4786,3253.8,3252.9,0.61484596]
[1765505632998,0.4786,3253.8,3252.4,0.37078808]
[1765505633218,0.4786,3253.8,3252.8,3.07419907]
[1765505633418,3.0734241,3253.7,3252.5,0.495]
[1765505633717,3.0734241,3253.7,3252.6,3.0744635]
[1765505633932,0.4817,3253.6,3252.6,3.46848866]
[1765505635121,0.4817,3253.8,3252.6,6.54295216]
[1765505635294,0.4817,3253.8,3252.7,0.4647]
[1765505635626,0.4817,3253.8,3252.8,3.07427447]
[1765505636121,0.1724,3253.9,3252.9,0.37078808]
[1765505636315,0.1724,3253.9,3253.0,1.1459337]
[1765505637033,0.4817,3253.8,3253.0,1.1459337]
[1765505637738,0.4817,3253.8,3253.1,3.07399096]
[1765505638618,0.4817,3253.8,3253.1,6.14798192]
[1765505638930,0.1724,3253.9,3253.1,6.14798192]
[1765505639131,0.1724,3253.9,3253.2,0.72939156]
[1765505639757,0.4817,3253.8,3253.2,0.72939156]
[1765505639957,0.4817,3253.8,3253.3,0.494]
[1765505640550,0.4817,3253.8,3252.5,3.0745555]
[1765505640551,0.4841,3253.4,3253.0,0.494]
[1765505641056,0.4841,3253.1,3253.0,0.494]
[1765505641210,0.4817,3253.8,3253.0,0.494]
[1765505641416,0.93345377,3253.8,3253.0,0.494]
[1765505641723,0.93345377,3253.8,3252.2,0.37078808]
[1765505641724,0.4841,3253.1,3251.8,0.4647]
[1765505642037,0.58047529,3253.6,3251.9,0.494]
[1765505642241,0.4817,3253.5,3252.0,0.494]
[1765505642446,0.4817,3253.5,3253.0,3.07404572]
[1765505642654,0.4817,3253.5,3252.9,3.07416884]
[1765505642863,0.4817,3253.5,3252.8,3.56821294]
[1765505643142,0.4817,3253.5,3252.9,3.07417119]
[1765505643350,0.4841,3253.0,3251.8,0.4647]
[1765505643519,0.4817,3253.5,3252.2,3.56883204]
[1765505643725,3.26513408,3252.9,3252.2,0.494]
[1765505643917,0.4817,3252.8,3252.2,0.494]
[1765505644118,0.4817,3252.8,3251.4,0.5322]
[1765505644119,0.4841,3252.3,3251.8,3.07514996]
[1765505644319,0.4841,3252.3,3251.9,0.494]
[1765505644526,0.4817,3252.2,3251.9,0.494]
[1765505644745,0.6779,3252.0,3251.0,0.494]
[1765505644962,0.6779,3252.0,3251.1,0.494]
[1765505645241,0.4788,3251.9,3251.1,0.494]
[1765505645742,0.4788,3251.9,3251.2,6.1515748]
[1765505645926,0.1907,3252.0,3251.3,0.68444748]
[1765505647144,0.4843,3251.4,3250.5,3.07638414]
[1765505647336,0.4817,3251.4,3250.6,0.494]
[1765505647747,3.07569279,3251.3,3250.6,0.494]
[1765505648127,0.4817,3251.2,3250.6,0.494]
[1765505648312,0.4817,3251.2,3250.6,3.57034209]
[1765505648517,0.4817,3251.2,3250.6,0.494]
[1765505648717,0.4817,3251.2,3250.6,3.57034013]
[1765505649243,0.4862,3250.7,3249.9,0.494]
[1765505649446,0.2943,3250.0,3249.9,0.494]
[1765505649648,0.2943,3250.0,3249.1,3.07776792]
[1765505649830,0.3838,3249.8,3249.5,0.494]
[1765505650150,0.1909,3249.8,3249.5,0.494]
[1765505650922,0.6569,3249.8,3249.5,0.494]
[1765505651122,0.1909,3250.3,3249.5,0.494]
[1765505651355,0.1909,3250.3,3249.7,0.4863]
[1765505651750,0.1909,3250.3,3249.8,3.07711243]
[1765505651924,0.1909,3250.3,3249.9,0.35634124]
[1765505652125,0.1909,3250.3,3250.0,0.494]
[1765505652343,3.26716137,3250.7,3250.0,0.494]
[1765505652852,0.1909,3250.7,3250.0,0.494]
[1765505653048,3.26717772,3250.7,3250.0,0.494]
[1765505654323,3.26718119,3250.7,3250.0,0.494]
[1765505654725,3.74808119,3250.7,3250.0,0.494]
[1765505655133,3.07597662,3251.0,3250.1,0.039]
[1765505655537,3.55687662,3251.0,3250.1,0.039]
[1765505655744,0.4809,3251.0,3250.1,0.039]
[1765505655977,3.55692585,3251.0,3250.1,0.039]
[1765505656128,6.6329517,3251.0,3250.1,0.21406755]
[1765505656463,0.85168808,3250.9,3250.0,0.494]
[1765505656643,0.85168808,3250.9,3250.0,3.57089823]
[1765505656842,0.4809,3250.8,3250.0,3.57089823]
[1765505657059,0.4809,3250.8,3250.1,3.07677771]
[1765505658365,3.07617249,3250.8,3250.1,3.13187771]
[1765505658565,0.4809,3251.1,3250.2,0.36258777]
[1765505659031,3.55679494,3251.1,3250.2,0.36258777]
[1765505660054,6.63268988,3251.1,3250.2,0.36258777]
[1765505660362,6.63268988,3251.1,3250.1,3.13187771]
[1765505660363,0.84128808,3251.0,3250.0,0.494]
[1765505660547,0.84128808,3251.0,3250.0,3.57091311]
[1765505660747,0.4705,3250.9,3250.0,0.494]
[1765505661538,0.37078808,3250.8,3250.0,0.494]
[1765505661943,0.489,3250.1,3250.0,0.494]
[1765505663540,0.4705,3250.7,3250.0,4.0520195]
[1765505663845,0.4705,3250.7,3250.0,4.7649306]
[1765505664436,0.1909,3251.2,3250.1,0.0521]
[1765505664669,0.4705,3251.1,3250.1,0.0521]
[1765505665257,3.54647593,3251.1,3250.1,0.0521]
[1765505665460,3.54647593,3251.1,3250.2,0.74128537]
[1765505665766,0.4705,3251.1,3250.2,0.74128537]
[1765505666474,0.4705,3251.0,3250.2,0.74128537]
[1765505666654,6.15214248,3250.9,3250.1,0.0521]
[1765505666847,0.4743,3250.2,3250.0,0.494]
[1765505667394,6.15214248,3250.9,3250.0,0.494]
[1765505667593,3.07607124,3250.9,3250.0,0.494]
[1765505667793,3.546382,3251.1,3250.2,3.07673373]
[1765505667993,6.622264,3251.1,3250.2,3.07673373]
[1765505668496,0.4705,3251.1,3250.2,3.07673373]
[1765505668675,0.4705,3251.1,3250.2,6.15346746]
[1765505668872,3.54638832,3251.1,3250.2,6.87242421]
[1765505669080,3.54638832,3251.1,3250.2,3.79569048]
[1765505669481,3.07590161,3251.1,3250.2,3.79569048]
[1765505669685,0.4705,3251.0,3250.1,3.6189001]
[1765505669884,0.4705,3251.0,3250.1,3.1289001]
[1765505670176,0.4705,3251.0,3250.0,0.494]
[1765505670376,0.4705,3251.0,3250.1,3.07676823]
[1765505671393,0.1909,3251.2,3250.2,0.5421]
[1765505671596,0.1909,3251.2,3250.3,0.66956966]
[1765505671799,3.26669773,3251.2,3250.4,0.493]
[1765505672184,3.73719773,3251.2,3250.4,0.493]
[1765505673806,0.4705,3251.1,3250.4,0.493]
[1765505674387,0.4743,3250.5,3250.4,0.493]
[1765505674583,0.4705,3251.1,3250.4,0.493]
[1765505674992,0.4743,3250.5,3250.4,0.493]
[1765505675186,0.4705,3251.1,3250.4,0.493]
[1765505675817,6.15195324,3251.0,3250.4,0.493]
[1765505676030,0.4743,3250.5,3250.1,0.493]
[1765505676529,0.58047529,3250.9,3250.1,0.493]
[1765505676811,0.489,3250.2,3250.1,0.493]
[1765505677380,0.9451,3250.2,3250.1,0.493]
[1765505678588,0.489,3250.2,3250.1,0.493]
[1765505680006,3.07626575,3250.7,3250.1,0.493]
[1765505680210,0.4705,3250.8,3250.1,1.0262]
[1765505680415,0.4705,3250.8,3250.1,4.10302258]
[1765505681289,0.4705,3250.8,3250.1,1.0262]
[1765505682011,6.15252098,3250.7,3250.1,0.493]
[1765505682191,0.4743,3250.2,3249.7,0.001]
[1765505682402,0.4705,3250.6,3249.8,0.493]
[1765505683343,0.4705,3250.6,3249.7,6.15540492]
[1765505683512,0.0047,3249.8,3249.7,3.07820712]
[1765505683704,0.0047,3249.8,3249.7,0.001]
[1765505683904,0.485,3250.1,3249.7,0.001]
[1765505684100,0.4601,3249.8,3249.7,0.001]
[1765505684518,0.9448,3249.8,3249.7,0.001]
[1765505686521,4.02191243,3249.8,3249.7,0.001]
[1765505687231,3.52191243,3249.8,3249.7,0.001]
[1765505688751,4.10238772,3249.8,3249.7,0.001]
[1765505693111,3.65758772,3249.8,3249.7,0.001]
[1765505694235,4.07808772,3249.8,3249.7,0.001]
[1765505694405,0.58047529,3250.4,3249.7,0.001]
[1765505694608,0.492,3250.3,3249.7,0.001]
[1765505694834,6.15346746,3250.2,3249.7,0.001]
[1765505695038,0.58047529,3250.1,3249.7,0.001]
[1765505696006,0.4205,3250.0,3249.7,0.001]
[1765505696917,3.07701775,3249.9,3249.7,0.001]
[1765505700850,3.07626049,3250.7,3249.8,0.9194]
[1765505701052,6.15252098,3250.7,3249.9,0.4604]
[1765505701346,3.07626049,3250.7,3249.9,0.9194]
[1765505701642,9.22773555,3251.1,3249.9,0.459]
[1765505701844,0.58047529,3251.0,3249.9,0.459]
[1765505702046,0.58047529,3251.0,3249.9,3.53594604]
[1765505702344,0.58047529,3251.0,3250.0,0.66130519]
[1765505702545,0.37078808,3250.7,3249.7,0.001]
[1765505702745,0.86278808,3250.7,3249.7,0.001]
[1765505702960,0.37078808,3250.9,3249.7,0.46]
[1765505703127,6.15271026,3250.6,3249.7,0.46]
[1765505703327,9.22906539,3250.6,3249.7,0.001]
[1765505703527,0.37078808,3250.3,3249.7,0.001]
[1765505704417,0.86278808,3250.3,3249.7,0.001]
[1765505705064,6.1536568,3250.1,3249.7,0.001]
[1765505706492,3.4467021,3251.1,3250.0,0.4604]
[1765505706493,3.56835513,3250.6,3250.0,0.4604]
[1765505706647,0.58047529,3250.5,3250.0,0.4604]
[1765505707172,0.58047529,3250.3,3250.0,0.4604]
[1765505707747,0.4205,3250.1,3249.7,0.001]
[1765505707949,3.07654442,3250.4,3249.8,0.459]
[1765505708195,3.07654442,3250.4,3250.3,0.4604]
[1765505709174,0.58047529,3250.6,3250.3,0.4604]
[1765505709372,0.58047529,3250.6,3250.1,0.1854]
[1765505709879,0.58047529,3250.6,3249.8,0.459]
[1765505710082,1.02567529,3250.6,3249.8,0.459]
[1765505710388,3.07626049,3250.7,3249.8,0.459]
[1765505710589,3.07540902,3251.6,3250.6,0.4604]
[1765505710758,6.49544211,3251.6,3250.8,0.4604]
[1765505710950,0.485,3251.5,3250.5,0.6774]
[1765505711388,3.0755982,3251.4,3250.5,0.6774]
[1765505711577,3.0755982,3251.4,3250.6,0.459]
[1765505711748,3.0755982,3251.4,3250.7,0.42128473]
[1765505711952,3.0755982,3251.4,3250.6,0.459]
[1765505713100,0.485,3251.8,3250.6,0.459]
[1765505713303,3.07531445,3251.7,3250.7,3.07626049]
[1765505713599,6.15063576,3251.7,3250.7,3.07626049]
[1765505713766,6.15063576,3251.7,3250.7,3.57036049]
[1765505713964,3.07531445,3251.7,3250.8,0.4941]
[1765505714168,3.07524256,3251.8,3250.8,1.15876987]
[1765505714386,3.07524256,3251.8,3250.9,0.4941]
[1765505714589,6.15048512,3251.8,3250.9,0.4941]
[1765505714964,0.4595,3251.7,3250.8,0.491]
[1765505715398,6.15048512,3251.8,3250.8,0.491]
[1765505715399,0.58047529,3251.8,3250.9,0.4952]
[1765505715601,0.58047529,3251.8,3250.9,3.57124233]
[1765505715767,6.14987238,3252.1,3251.7,0.4687]
[1765505716265,6.14987238,3252.1,3251.5,0.1811]
[1765505716463,0.37078808,3251.9,3250.7,0.4952]
[1765505716691,6.14987238,3252.1,3250.7,0.9862]
[1765505716692,0.943,3252.0,3250.7,0.9862]
[1765505716894,6.14987238,3252.1,3250.9,6.15211099]
[1765505717189,6.14987238,3252.1,3250.9,3.07604871]
[1765505717392,6.15025062,3251.9,3251.0,0.492]
[1765505717778,0.1813,3251.8,3251.1,0.1811]
[1765505717978,6.60225062,3251.9,3251.1,0.1811]
[1765505717979,6.15025062,3251.9,3251.1,0.1811]
[1765505718178,6.15025062,3251.9,3251.2,0.4952]
[1765505719101,0.1813,3251.8,3251.0,0.492]
[1765505719306,6.1506289,3251.7,3251.0,0.492]
[1765505719600,0.1062,3251.1,3250.3,0.1811]
[1765505719801,0.1062,3251.1,3250.4,0.491]
[1765505720704,0.1062,3251.1,3250.0,3.07691101]
[1765505720705,0.0045,3250.5,3249.9,0.1811]
[1765505720897,0.096,3250.4,3249.9,0.1811]
[1765505721096,0.0998,3250.5,3249.9,0.1811]
[1765505721297,6.15138558,3251.3,3250.4,0.4687]
[1765505721502,6.60313935,3251.3,3250.8,0.4687]
[1765505721900,3.07569279,3251.3,3250.8,0.9639]
[1765505722705,6.15138558,3251.3,3250.8,0.9639]
[1765505723414,0.58047529,3251.6,3250.8,0.9639]
[1765505723415,6.15100722,3251.5,3250.8,0.9639]
[1765505723600,6.15100722,3251.5,3250.8,0.4687]
[1765505723813,0.452,3251.4,3250.4,0.9862]
[1765505723994,0.452,3251.4,3250.5,0.40628259]
[1765505724175,0.452,3251.4,3250.4,0.9862]
[1765505724379,0.452,3251.4,3250.0,0.4952]
[1765505724380,0.37078808,3251.3,3250.0,0.4952]
[1765505724579,0.86178808,3251.3,3250.1,0.4952]
[1765505724809,0.452,3251.2,3250.1,0.4952]
[1765505725208,0.452,3251.2,3250.1,3.57201577]
[1765505725514,0.452,3251.2,3250.0,0.492]
[1765505725515,0.097,3250.2,3250.0,0.492]
[1765505725729,0.001,3250.1,3249.7,0.001]
[1765505726216,0.096,3249.8,3249.7,0.001]
[1765505727620,3.17311243,3249.8,3249.7,0.001]
[1765505728020,3.62251243,3249.8,3249.7,0.001]
[1765505728386,3.75358772,3249.8,3249.7,0.001]
[1765505728591,4.20298772,3249.8,3249.7,0.001]
[1765505730419,10.04063572,3249.8,3249.7,0.001]
[1765505730592,10.53263572,3249.8,3249.7,0.001]
[1765505730910,4.69498772,3249.8,3249.7,0.001]
[1765505731794,3.65758772,3249.8,3249.7,0.001]
[1765505731999,3.07711243,3249.8,3249.7,0.001]
[1765505732215,3.17411243,3249.8,3249.7,0.001]
[1765505732517,3.62261243,3249.8,3249.7,0.001]
[1765505732901,3.17411243,3249.8,3249.7,0.001]
[1765505733102,3.07711243,3249.8,3249.7,0.001]
[1765505734492,3.07700031,3250.0,3249.7,0.4697]
[1765505734493,3.07692307,3250.0,3249.7,0.4697]
[1765505735010,6.15384614,3250.0,3249.7,0.4697]
[1765505735209,6.15384614,3250.0,3249.7,0.001]
[1765505735697,0.4543,3249.8,3249.7,0.001]
[1765505736098,3.53141243,3249.8,3249.7,0.001]
[1765505736898,3.07711243,3249.8,3249.7,0.4697]
[1765505737414,6.15327814,3250.3,3249.7,0.4697]
[1765505737620,6.15327814,3250.3,3249.7,0.4962]
[1765505737992,3.07635513,3250.6,3250.2,0.4687]
[1765505738234,3.07635513,3250.6,3250.2,0.9639]
[1765505738235,6.15271026,3250.6,3250.2,0.9639]
[1765505738629,6.60471026,3250.6,3249.9,0.1811]
[1765505738828,0.0045,3250.2,3249.7,0.001]
[1765505739128,0.4485,3250.5,3249.7,0.001]
[1765505739295,0.4485,3250.5,3249.7,0.4962]
[1765505739494,0.4485,3250.5,3249.7,0.001]
[1765505740191,6.15308884,3250.4,3249.7,0.001]
[1765505741128,0.097,3249.8,3249.7,0.001]
[1765505741999,0.5455,3249.8,3249.7,0.001]
[1765505742401,4.20308772,3249.8,3249.7,0.001]
[1765505743320,3.65758772,3249.8,3249.7,0.001]
[1765505743509,3.07711243,3249.8,3249.7,0.001]
[1765505743834,6.1539984,3250.0,3249.7,0.001]
[1765505744347,3.15501243,3249.8,3249.7,0.001]
[1765505744840,3.62241243,3249.8,3249.7,0.001]
[1765505745049,4.20288772,3249.8,3249.7,0.001]
[1765505747143,3.64701243,3249.8,3249.7,0.001]
[1765505747922,3.15501243,3249.8,3249.7,0.001]
[1765505748118,3.64701243,3249.8,3249.7,0.001]
[1765505748507,3.15501243,3249.8,3249.7,0.001]
[1765505749811,3.62241243,3249.8,3249.7,0.001]
[1765505750006,4.20288772,3249.8,3249.7,0.001]
[1765505751031,21.84656272,3249.8,3249.7,0.001]
[1765505751211,20.28744272,3249.8,3249.7,0.001]
[1765505751536,27.48688072,3249.8,3249.7,0.001]
[1765505751706,9.85618372,3249.8,3249.7,0.001]
[1765505751909,10.34818372,3249.8,3249.7,0.001]
[1765505753129,7.23244097,3249.8,3249.7,0.001]
[1765505755818,13.59244097,3249.8,3249.7,0.001]
[1765505756842,13.99794497,3249.8,3249.7,0.001]
[1765505757041,36.67390897,3249.8,3249.7,0.001]
[1765505757242,34.86383497,3249.8,3249.7,0.001]
[1765505757960,3.239,3249.3,3248.8,0.001]
[1765505758115,0.2667,3248.9,3248.8,0.001]
[1765505758317,0.1935,3249.6,3248.8,0.001]
[1765505758519,0.491,3249.5,3248.8,0.972]
[1765505758715,0.491,3249.5,3248.8,0.001]
[1765505759047,0.0779,3248.9,3248.8,0.001]
[1765505759249,0.5699,3248.9,3248.8,0.001]
[1765505760053,4.22834013,3248.9,3248.8,0.001]
[1765505760252,3.07796484,3248.9,3248.8,0.972]
[1765505760458,6.15460364,3249.6,3248.8,0.972]
[1765505760764,6.15460364,3249.6,3249.0,0.4779]
[1765505760765,0.58047529,3249.5,3249.0,0.4779]
[1765505760923,0.58047529,3249.5,3248.9,0.4931]
[1765505761122,0.58047529,3249.5,3249.4,0.6702]
[1765505761538,0.58047529,3249.5,3249.4,1.1633]
[1765505761852,3.07739652,3249.5,3249.4,1.1633]
[1765505762223,3.65787181,3249.5,3249.4,1.1633]
[1765505765565,6.81316833,3249.5,3249.1,0.1923]
[1765505765851,3.65787181,3249.5,3249.4,0.6702]
[1765505766558,3.65787181,3249.5,3249.4,0.4779]
[1765505766757,6.81316833,3249.5,3248.8,0.001]
[1765505767063,9.89056485,3249.5,3248.8,0.4941]
[1765505767228,0.58047529,3249.4,3248.8,0.4941]
[1765505767659,0.58047529,3249.2,3248.8,0.4941]
[1765505768234,0.58047529,3249.2,3249.1,0.4779]
[1765505768462,0.58047529,3249.2,3248.8,0.4941]
[1765505769458,0.58047529,3249.2,3248.8,0.001]
[1765505770030,6.15555076,3249.1,3248.8,0.001]
[1765505770971,0.0779,3248.9,3248.8,0.001]
[1765505772027,3.81676484,3248.9,3248.8,0.001]
[1765505772259,3.07796484,3248.9,3248.8,0.972]
[1765505772433,3.07796484,3248.9,3248.8,0.4789]
[1765505774065,0.58047529,3249.0,3248.8,0.4789]
[1765505774283,9.81266485,3249.5,3248.8,0.001]
[1765505774430,12.79218608,3249.5,3248.8,0.001]
[1765505774636,0.58047529,3249.4,3248.8,0.001]
[1765505775874,0.58047529,3249.4,3249.3,0.4626]
[1765505776079,3.65796651,3249.4,3249.3,0.4626]
[1765505776362,9.90374895,3249.4,3248.9,0.4703]
[1765505777745,6.82625773,3249.4,3248.9,0.4703]
[1765505778548,6.73545773,3249.4,3248.9,0.4703]
[1765505778732,3.65796651,3249.4,3249.3,0.4626]
[1765505779976,6.73545773,3249.4,3248.8,0.4713]
[1765505780166,6.73545773,3249.4,3249.3,0.4626]
[1765505780167,3.65796651,3249.4,3249.3,0.4626]
[1765505781281,3.65796651,3249.4,3249.3,0.9329]
[1765505781573,3.07749122,3249.4,3249.3,0.9329]
[1765505782776,3.07749122,3249.4,3249.3,0.4626]
[1765505783078,0.58047529,3249.3,3248.9,0.4703]
[1765505783282,3.07768065,3249.2,3248.9,0.4703]
[1765505783682,3.07768065,3249.2,3249.1,0.6499]
[1765505784056,3.07768065,3249.2,3249.1,1.1202]
[1765505785082,3.07768065,3249.2,3249.1,0.6499]
[1765505785268,0.58047529,3249.3,3249.1,0.6499]
[1765505785473,0.58047529,3249.3,3249.1,0.1873]
[1765505785675,0.58047529,3249.3,3249.2,0.4626]
[1765505786861,0.58047529,3249.3,3248.8,0.4713]
[1765505787185,0.67867529,3249.3,3248.8,0.4713]
[1765505788587,3.07768065,3249.2,3248.8,0.4713]
[1765505788794,6.1553613,3249.2,3248.8,0.4713]
[1765505788981,3.07768065,3249.2,3249.1,0.4626]
[1765505790182,6.6522613,3249.2,3248.8,0.4713]
[1765505792185,0.58047529,3249.1,3248.8,0.4713]
[1765505792584,0.58047529,3249.1,3248.8,0.001]
[1765505793154,3.07787011,3249.0,3248.9,0.4703]
[1765505793661,3.07787011,3249.0,3248.9,0.9329]
[1765505794083,3.65777711,3249.6,3248.9,0.9329]
[1765505794253,6.73507893,3249.6,3249.0,0.9329]
[1765505794563,3.65777711,3249.6,3249.5,0.4626]
[1765505794762,6.73507893,3249.6,3249.1,0.6576]
[1765505795176,6.73507893,3249.6,3249.2,0.4703]
[1765505797374,3.65777711,3249.6,3249.5,0.4626]
[1765505797892,3.07719484,3249.8,3249.5,0.9329]
[1765505798078,3.07719484,3249.8,3249.7,0.4626]
[1765505798284,3.65767013,3249.8,3249.7,0.4626]
[1765505798486,3.65767013,3249.8,3249.7,0.9329]
[1765505802992,3.07681505,3250.2,3249.7,0.9329]
[1765505803288,0.58047529,3250.1,3249.9,0.4621]
[1765505803494,0.58047529,3250.1,3249.8,0.469]
[1765505803679,0.58047529,3250.1,3250.0,0.4621]
[1765505804495,3.65730369,3250.1,3250.0,0.4621]
[1765505804988,3.0768284,3250.1,3250.0,0.9311]
[1765505808599,3.0768284,3250.1,3250.0,0.4621]
[1765505809295,3.0768284,3250.1,3250.0,0.9311]
[1765505810271,3.0768284,3250.1,3250.0,0.4621]
[1765505811976,3.56830014,3250.7,3250.0,0.4621]
[1765505811977,3.07654442,3250.4,3250.0,1.4211]
[1765505812277,0.58047529,3250.5,3250.3,0.4621]
[1765505812670,0.58047529,3250.5,3250.4,0.4621]
[1765505812870,0.58047529,3250.5,3250.1,0.1934]
[1765505813067,0.0676,3250.2,3249.4,0.469]
[1765505813293,0.58047529,3250.5,3250.4,0.4621]
[1765505813503,0.58047529,3250.5,3250.4,0.9311]
[1765505813869,3.65692506,3250.5,3250.4,0.9311]
[1765505814068,7.22367483,3250.5,3249.5,0.469]
[1765505814273,7.28277483,3250.5,3249.6,0.49]
[1765505814702,7.28277483,3250.5,3249.7,0.469]
[1765505815272,7.28277483,3250.5,3249.8,0.49]
[1765505817512,10.3001246,3250.5,3249.8,0.49]
[1765505817713,0.0591,3250.4,3249.8,0.49]
[1765505818899,6.15327814,3250.3,3249.8,0.49]
[1765505819425,6.15327814,3250.3,3249.8,0.959]
[1765505819888,6.61197814,3250.3,3249.8,0.49]
[1765505820513,6.15327814,3250.3,3249.8,0.959]
[1765505821016,6.15327814,3250.3,3249.1,0.1873]
[1765505821017,0.6782,3249.9,3249.1,0.1873]
[1765505821247,0.6782,3249.9,3248.8,0.001]
[1765505821248,0.486,3249.2,3248.8,0.491]
[1765505821590,0.486,3249.2,3248.8,0.96]
[1765505822324,0.486,3249.2,3248.8,0.491]
[1765505822615,0.58047529,3249.6,3249.1,0.4621]
[1765505822821,0.4587,3249.8,3249.1,0.4621]
[1765505823022,0.58047529,3249.7,3249.1,0.4621]
[1765505823424,0.58047529,3249.7,3249.6,0.4621]
[1765505823612,3.07692307,3250.0,3249.6,0.4621]
[1765505823922,0.58047529,3250.1,3249.7,0.4621]
[1765505824120,0.58047529,3250.1,3249.5,0.49]
[1765505824638,0.58047529,3250.1,3249.5,0.959]
[1765505824996,0.58047529,3249.9,3249.6,0.469]
[1765505825424,0.58047529,3249.9,3249.8,0.4621]
[1765505825996,3.07692307,3250.0,3249.8,0.4621]
[1765505826194,3.65739836,3250.0,3249.9,0.4621]
[1765505826614,0.58047529,3250.0,3249.9,0.9311]
[1765505827016,8.76144696,3250.7,3249.9,6.61424352]
[1765505827017,0.002,3250.7,3249.9,6.61424352]
[1765505827221,0.002,3250.7,3250.0,1.4211]
[1765505827419,0.58247529,3250.7,3250.0,1.4211]
[1765505827622,0.58247529,3250.7,3250.1,0.469]
[1765505828428,0.58247529,3250.7,3250.6,0.4621]
[1765505828820,0.58247529,3250.7,3250.6,0.9311]
[1765505829022,3.07826049,3250.7,3250.6,0.9311]
[1765505829339,3.07826049,3250.7,3250.6,0.4621]
[1765505829546,3.07826049,3250.7,3250.1,0.469]
[1765505829547,0.58047529,3250.6,3250.1,0.469]
[1765505829923,0.58047529,3250.6,3250.2,0.49]
[1765505830999,3.07673373,3250.2,3249.7,0.469]
[1765505831235,0.58047529,3250.1,3249.7,0.469]
[1765505831530,0.58047529,3250.1,3248.7,0.001]
[1765505831729,0.0942,3249.8,3249.2,0.469]
[1765505831903,0.0942,3249.8,3249.3,0.959]
[1765505832424,0.58047529,3250.1,3249.7,0.4621]
[1765505832633,3.0763618,3250.6,3250.0,0.4621]
[1765505832634,3.07635513,3250.6,3250.0,0.4621]
[1765505832816,3.07635513,3250.6,3250.5,0.4607]
[1765505833226,0.58047529,3250.6,3250.5,0.4607]
[1765505834708,0.58047529,3250.6,3250.5,0.9346]
[1765505834910,3.07826049,3250.7,3250.5,0.9346]
[1765505835237,0.002,3250.7,3250.6,0.4539]
[1765505836734,0.002,3250.7,3250.6,0.921]
[1765505838535,0.002,3250.7,3250.6,0.4539]
[1765505838843,0.0999,3250.7,3250.3,0.49]
[1765505839133,0.002,3250.7,3250.4,0.9571]
[1765505839534,0.002,3250.7,3250.6,0.4539]
[1765505839906,0.002,3250.7,3250.4,0.49]
[1765505840319,0.002,3250.7,3250.6,0.4539]
[1765505843351,0.002,3250.7,3250.6,0.921]
[1765505843519,0.002,3250.7,3250.6,0.4539]
[1765505844047,0.0999,3250.7,3250.4,0.49]
[1765505845448,0.0045,3250.5,3250.4,0.49]
[1765505845623,0.002,3250.7,3250.6,0.4539]
[1765505846542,0.002,3250.7,3250.6,0.921]
[1765505846952,0.002,3250.7,3250.6,0.4539]
[1765505848034,0.002,3250.7,3249.9,0.4671]
[1765505848035,0.2081,3250.7,3249.9,0.4671]
[1765505848257,0.2081,3250.7,3250.0,0.49]
[1765505848258,0.002,3250.7,3250.0,0.49]
[1765505849050,0.4532,3250.7,3250.0,0.49]
[1765505849558,0.4532,3250.7,3250.1,0.49]
[1765505849854,3.07635513,3250.6,3250.1,0.49]
[1765505850547,3.52755513,3250.6,3250.1,0.49]
[1765505850863,3.07635513,3250.6,3250.1,0.9571]
[1765505853740,3.07635513,3250.6,3250.1,0.49]
[1765505854058,3.07635513,3250.6,3250.1,0.9571]
[1765505854360,0.002,3250.7,3250.2,0.4671]
[1765505856064,0.002,3250.7,3250.1,0.49]
[1765505856065,0.4627,3250.3,3250.1,0.49]
[1765505856263,3.07644977,3250.5,3250.1,0.49]
[1765505856656,3.07644977,3250.5,3249.3,3.54467923]
[1765505856657,0.459,3250.2,3249.3,3.54467923]
[1765505856860,0.459,3250.2,3249.5,0.4671]
[1765505857939,0.459,3250.2,3249.4,0.4671]
[1765505858144,0.5491,3250.2,3249.5,0.49]
[1765505858366,0.58047529,3250.0,3249.5,0.49]
[1765505858972,0.58047529,3250.0,3249.6,0.4671]
[1765505861285,3.07701775,3249.9,3249.6,0.4671]
[1765505861476,3.07701775,3249.9,3249.6,0.9571]
[1765505863059,3.07701775,3249.9,3249.8,0.496]
[1765505865180,3.07635513,3250.6,3249.8,4.03760145]
[1765505865483,3.54545513,3250.6,3249.5,0.4645]
[1765505865657,6.15271026,3250.6,3249.6,0.49]
[1765505865857,3.07635513,3250.6,3249.6,0.49]
[1765505866088,6.62181026,3250.6,3249.7,0.4645]
[1765505866464,6.15271026,3250.6,3249.7,0.4645]
[1765505867382,3.07635513,3250.6,3249.7,0.4645]
[1765505868160,0.58247529,3250.7,3249.8,3.07711243]
[1765505868705,0.58247529,3250.7,3249.8,6.15422486]
[1765505868858,0.58247529,3250.7,3249.9,1.12637249]
[1765505869061,0.58247529,3250.7,3250.0,0.49]
[1765505869258,0.002,3250.7,3250.6,0.496]
[1765505869987,0.0821,3250.7,3250.5,0.49]